bitfinex-derivatives/quotes_BTCF0:USTF0_20250114
["timestamp","ask_amount","ask_price","bid_price","bid_amount"]
[1736873891082,0.052244,95748.0,95746.0,0.052244]
[1736873891281,0.17280237,95760.0,95737.0,0.1736]
[1736873891282,0.11384,95755.0,95737.0,0.1736]
[1736873891475,0.052243,95750.0,95746.0,0.052244]
[1736873891681,0.0616,95755.0,95746.0,0.052244]
[1736873891682,0.002,95748.0,95746.0,0.052244]
[1736873892076,0.002,95748.0,95747.0,1.5]
[1736873892685,0.004,95748.0,95747.0,1.552244]
[1736873893787,0.90306895,95786.0,95771.0,0.052231]
[1736873893988,0.052229,95775.0,95771.0,0.052231]
[1736873894187,0.24802105,95772.0,95771.0,0.052231]
[1736873894891,0.084711,95772.0,95771.0,0.052231]
[1736873895892,0.052228,95776.0,95766.0,0.3608]
[1736873896092,0.052228,95776.0,95774.0,0.052229]
[1736873896586,0.0611,95778.0,95769.0,0.052232]
[1736873896894,0.052233,95767.0,95766.0,0.3608]
[1736873897088,0.054231,95772.0,95768.0,0.052232]
[1736873897290,0.002,95772.0,95771.0,0.052231]
[1736873897490,0.56061397,95792.0,95788.0,0.052221]
[1736873897491,0.55961397,95792.0,95788.0,0.052221]
[1736873897884,0.55961397,95792.0,95789.0,0.052221]
[1736873898085,0.55961397,95792.0,95791.0,0.05222]
[1736873898287,0.0015666,95792.0,95791.0,0.05222]
[1736873899791,0.3608,95802.0,95801.0,0.052215]
[1736873900184,0.0592,95810.0,95805.0,0.052212]
[1736873900681,0.11141,95810.0,95805.0,0.052212]
[1736873901891,0.11141,95810.0,95806.0,0.052212]
[1736873902493,0.0592,95810.0,95795.0,0.052218]
[1736873902795,0.052216,95799.0,95781.0,0.052785]
[1736873902982,0.05222,95792.0,95788.0,0.052221]
[1736873903186,0.3608,95793.0,95789.0,0.052221]
[1736873903688,0.3608,95793.0,95780.0,0.17280237]
[1736873903885,0.3608,95793.0,95792.0,0.052219]
[1736873904598,0.3608,95801.0,95800.0,0.052215]
[1736873905493,0.3608,95801.0,95794.0,0.052218]
[1736873905698,0.3678,95801.0,95794.0,0.052218]
[1736873905899,0.052216,95798.0,95794.0,0.052218]
[1736873906602,0.052216,95798.0,95795.0,0.052218]
[1736873907395,0.0572,95800.0,95795.0,0.052218]
[1736873907595,0.001,95798.0,95773.0,0.0026]
[1736873907901,0.3608,95793.0,95780.0,0.17280237]
[1736873908095,0.3608,95793.0,95781.0,0.052225]
[1736873908303,0.001,95798.0,95789.0,0.3608]
[1736873908495,0.001,95798.0,95797.0,0.413017]
[1736873909303,0.006,95798.0,95797.0,0.413017]
[1736873909808,0.007,95798.0,95797.0,0.414017]
[1736873910004,0.007,95798.0,95797.0,0.470917]
[1736873910303,0.0597,95818.0,95817.0,0.052206]
[1736873911205,0.052208,95814.0,95809.0,0.05221]
[1736873911506,0.052208,95814.0,95810.0,0.052209]
[1736873912408,0.0737,95818.0,95805.0,0.3608]
[1736873912603,0.0737,95818.0,95806.0,0.052211]
[1736873912907,0.052209,95811.0,95810.0,0.001]
[1736873913300,0.013,95814.0,95813.0,0.052208]
[1736873913809,0.009,95814.0,95813.0,0.052208]
[1736873914802,0.009,95814.0,95813.0,0.06446467]
[1736873915003,0.0717,95818.0,95817.0,0.052206]
[1736873915601,0.0627,95818.0,95817.0,0.052206]
[1736873915906,0.0597,95818.0,95817.0,0.052206]
[1736873916107,0.0597,95818.0,95817.0,0.053206]
[1736873916406,0.120905,95818.0,95817.0,0.001]
[1736873917109,0.125905,95818.0,95817.0,0.001]
[1736873917507,0.125905,95818.0,95797.0,0.36236588]
[1736873917508,0.0737,95818.0,95797.0,0.36236588]
[1736873917705,0.3608,95811.0,95797.0,0.36236588]
[1736873917902,0.0561,95810.0,95800.0,0.11520864]
[1736873918104,0.052212,95806.0,95803.0,0.052213]
[1736873918607,0.052213,95805.0,95803.0,0.052213]
[1736873918803,0.052213,95805.0,95798.0,0.052216]
[1736873919002,0.052213,95805.0,95803.0,0.052213]
[1736873919204,0.052213,95805.0,95797.0,0.00156588]
[1736873919504,0.007,95806.0,95805.0,0.052212]
[1736873920005,0.052212,95806.0,95805.0,0.052212]
[1736873921010,0.0561,95810.0,95798.0,0.001]
[1736873921308,0.003,95806.0,95805.0,0.052212]
[1736873921508,0.24802105,95829.0,95820.0,0.052204]
[1736873921713,0.24802105,95829.0,95820.0,1.552204]
[1736873922104,0.24802105,95829.0,95828.0,0.0522]
[1736873922602,0.3608,95832.0,95822.0,0.111]
[1736873922801,0.3608,95832.0,95831.0,0.052198]
[1736873923705,0.3608,95832.0,95831.0,0.05210014]
[1736873923706,0.54157755,95832.0,95831.0,0.05210014]
[1736873923905,0.54157755,95832.0,95822.0,0.111]
[1736873924101,0.18077755,95832.0,95831.0,0.052198]
[1736873924308,0.01482375,95839.0,95833.0,0.052197]
[1736873924509,0.01482375,95844.0,95841.0,0.052193]
[1736873924708,0.01482375,95844.0,95843.0,0.052192]
[1736873925005,0.3608,95862.0,95849.0,0.052188]
[1736873925306,0.3608,95862.0,95861.0,0.052182]
[1736873925510,0.3608,95878.0,95861.0,0.052182]
[1736873925511,0.3608,95878.0,95877.0,0.052173]
[1736873926010,0.3608,95883.0,95882.0,0.05217]
[1736873927310,0.3608,95885.0,95884.0,0.052169]
[1736873928213,0.3608,95885.0,95884.0,1.552169]
[1736873928409,0.0544,95891.0,95890.0,0.052166]
[1736873929222,0.3608,95897.0,95896.0,0.052163]
[1736873929709,0.3608,95897.0,95890.0,0.001]
[1736873929908,0.3608,95897.0,95893.0,0.052164]
[1736873930308,0.3608,95897.0,95894.0,0.052164]
[1736873930713,0.3608,95897.0,95890.0,0.01356527]
[1736873930714,0.3608,95897.0,95895.0,0.052163]
[1736873930913,0.3638,95897.0,95895.0,0.052163]
[1736873931113,0.052163,95896.0,95890.0,0.053166]
[1736873931313,0.3608,95893.0,95890.0,0.052166]
[1736873931508,0.052165,95892.0,95870.0,0.17434809]
[1736873931715,0.3608,95882.0,95881.0,0.052171]
[1736873932717,0.3608,95882.0,95881.0,0.06462899]
[1736873933518,0.3628,95882.0,95881.0,0.06462899]
[1736873933718,0.002,95882.0,95881.0,0.06462899]
[1736873934618,0.009,95882.0,95881.0,0.06562899]
[1736873935206,0.009,95882.0,95881.0,0.053171]
[1736873936019,0.3608,95893.0,95892.0,0.052165]
[1736873936518,0.00156476,95898.0,95897.0,0.052162]
[1736873936907,0.1,95900.0,95897.0,1.552162]
[1736873937123,0.3608,95911.0,95909.0,0.052155]
[1736873937423,0.052157,95907.0,95898.0,0.052162]
[1736873937620,0.3608,95901.0,95897.0,0.0006]
[1736873937821,0.3608,95901.0,95870.0,0.17434809]
[1736873938013,0.052168,95887.0,95882.0,0.05217]
[1736873938214,0.054,95886.0,95882.0,0.05217]
[1736873938411,0.054,95886.0,95870.0,0.17434809]
[1736873938623,0.052171,95881.0,95876.0,0.052173]
[1736873939014,0.3608,95883.0,95870.0,0.05374152]
[1736873939325,0.052175,95875.0,95870.0,0.05374152]
[1736873940023,0.052175,95875.0,95871.0,0.052176]
[1736873940214,0.412975,95875.0,95871.0,0.052176]
[1736873940415,0.3608,95875.0,95861.0,0.3608]
[1736873940717,0.052176,95871.0,95870.0,0.001]
[1736873941229,0.0553,95874.0,95871.0,0.001]
[1736873941424,0.0553,95874.0,95873.0,0.052175]
[1736873943022,0.0553,95874.0,95873.0,0.053175]
[1736873944421,0.0553,95874.0,95873.0,0.001]
[1736873944722,0.107475,95874.0,95873.0,0.001]
[1736873946119,0.108475,95874.0,95855.0,0.3608]
[1736873946322,0.052182,95860.0,95855.0,0.412985]
[1736873946540,0.052182,95860.0,95855.0,0.3608]
[1736873946723,0.412984,95857.0,95851.0,0.00056]
[1736873946917,0.412984,95857.0,95852.0,0.052187]
[1736873947113,0.3608,95857.0,95844.0,0.3608]
[1736873947324,0.3608,95857.0,95845.0,0.05219]
[1736873947625,0.3608,95857.0,95855.0,0.008]
[1736873948125,0.3618,95857.0,95854.0,0.052186]
[1736873948323,0.37408595,95857.0,95852.0,0.009]
[1736873948526,0.052186,95853.0,95852.0,0.009]
[1736873948714,0.052186,95853.0,95840.0,0.17278357]
[1736873948921,0.052186,95853.0,95849.0,0.052188]
[1736873949320,0.052186,95853.0,95840.0,0.17278357]
[1736873949621,0.052186,95853.0,95847.0,0.052189]
[1736873950024,0.053186,95853.0,95847.0,0.052189]
[1736873950325,0.001,95853.0,95842.0,0.052192]
[1736873950530,0.052188,95851.0,95845.0,0.05219]
[1736873950827,0.0553,95850.0,95845.0,0.05219]
[1736873951024,0.0553,95850.0,95837.0,0.01175314]
[1736873951219,0.0553,95850.0,95832.0,0.3608]
[1736873951422,0.0553,95850.0,95849.0,0.052188]
[1736873951630,0.0553,95850.0,95844.0,0.052191]
[1736873951826,0.0553,95850.0,95845.0,0.052191]
[1736873952024,0.052188,95849.0,95845.0,0.052191]
[1736873952231,0.052188,95849.0,95832.0,0.37255986]
[1736873952232,0.0553,95850.0,95846.0,1.5]
[1736873952528,0.05219,95846.0,95834.0,0.052196]
[1736873952724,0.3608,95847.0,95834.0,0.052196]
[1736873952725,0.052193,95841.0,95834.0,0.052196]
[1736873952925,0.05219,95846.0,95832.0,0.009]
[1736873953126,0.3608,95847.0,95832.0,0.009]
[1736873953127,0.3608,95847.0,95846.0,0.05219]
[1736873953829,0.0563,95850.0,95849.0,0.052188]
[1736873954024,0.0553,95850.0,95849.0,0.052188]
[1736873954228,0.0553,95850.0,95849.0,1.552188]
[1736873954931,0.0553,95850.0,95849.0,0.052188]
[1736873955431,0.0573,95850.0,95849.0,0.052188]
[1736873959935,0.0573,95850.0,95849.0,0.053188]
[1736873961730,0.0573,95850.0,95849.0,0.052188]
[1736873963532,0.052189,95848.0,95843.0,0.052191]
[1736873963724,0.052189,95848.0,95846.0,0.05219]
[1736873964729,0.0573,95850.0,95834.0,0.00056]
[1736873964928,0.0573,95850.0,95829.0,0.0546651]
[1736873964929,0.052193,95842.0,95838.0,0.052194]
[1736873965133,0.001,95848.0,95846.0,0.05219]
[1736873965334,0.001,95848.0,95847.0,0.05219]
[1736873967039,0.053189,95848.0,95847.0,0.05219]
[1736873967636,0.001,95848.0,95836.0,0.3608]
[1736873967835,0.052191,95844.0,95840.0,0.052193]
[1736873968035,0.052191,95844.0,95838.0,0.002]
[1736873968237,0.052194,95839.0,95838.0,0.002]
[1736873968435,0.052194,95839.0,95838.0,0.052194]
[1736873969531,0.052195,95837.0,95836.0,0.3628]
[1736873969731,0.052195,95837.0,95836.0,0.414996]
[1736873969931,0.052195,95837.0,95836.0,0.412996]
[1736873970833,0.052197,95833.0,95832.0,0.2500607]
[1736873971331,0.052197,95833.0,95831.0,0.052198]
[1736873972132,0.0517,95843.0,95829.0,0.2516258]
[1736873972334,0.0517,95843.0,95832.0,0.052197]
[1736873972638,0.052197,95834.0,95832.0,0.052197]
[1736873973841,0.052197,95834.0,95832.0,0.24769122]
[1736873974137,0.052197,95833.0,95832.0,0.24769122]
[1736873974832,0.052197,95833.0,95832.0,0.19549422]
[1736873975037,0.412997,95833.0,95832.0,0.19549422]
[1736873975540,0.42439712,95833.0,95832.0,0.19549422]
[1736873976340,0.42439712,95833.0,95832.0,0.008]
[1736873976635,0.42439712,95833.0,95832.0,0.003]
[1736873976937,0.42439712,95833.0,95832.0,0.008]
[1736873978234,0.42439712,95833.0,95832.0,0.060198]
[1736873978235,0.3608,95833.0,95832.0,0.060198]
[1736873978832,0.3608,95833.0,95832.0,0.008]
[1736873979032,0.412997,95833.0,95832.0,0.008]
[1736873984337,0.47350181,95833.0,95832.0,0.008]
[1736873984734,0.47350181,95833.0,95832.0,0.060198]
[1736873985040,0.11270181,95833.0,95832.0,0.060198]
[1736873985944,0.052197,95833.0,95832.0,0.008]
[1736873987640,0.053197,95833.0,95832.0,0.008]
[1736873988152,0.1137048,95833.0,95832.0,0.008]
[1736873988344,0.052199,95830.0,95829.0,0.0015651]
[1736873988843,0.052204,95822.0,95821.0,0.052204]
[1736873989044,0.3608,95824.0,95823.0,0.052203]
[1736873989246,0.0616678,95833.0,95822.0,0.3608]
[1736873989547,0.052198,95831.0,95830.0,0.052198]
[1736873990342,0.052198,95831.0,95829.0,0.006]
[1736873990343,0.052199,95830.0,95829.0,0.006]
[1736873990939,0.052199,95830.0,95822.0,0.004]
[1736873990940,0.052203,95823.0,95822.0,0.004]
[1736873991141,0.413003,95823.0,95822.0,0.004]
[1736873991341,0.05221,95810.0,95809.0,0.0376128]
[1736873991532,0.3608,95812.0,95811.0,0.052209]
[1736873991743,0.413009,95812.0,95811.0,0.052209]
[1736873992141,0.052209,95812.0,95811.0,0.052209]
[1736873992339,0.052209,95812.0,95804.0,0.1564]
[1736873992340,0.052212,95805.0,95804.0,0.1564]
[1736873992638,0.052212,95805.0,95804.0,0.0506]
[1736873992837,0.052212,95805.0,95804.0,0.02972662]
[1736873993944,0.053212,95805.0,95804.0,0.08793962]
[1736873994444,0.053212,95805.0,95804.0,0.07527387]
[1736873994745,0.054212,95805.0,95804.0,0.07527387]
[1736873995541,0.002,95805.0,95804.0,0.07527387]
[1736873998735,0.002,95805.0,95804.0,1.57527387]
[1736874000445,0.054212,95805.0,95804.0,0.02306087]
[1736874000643,0.054212,95805.0,95804.0,0.006]
[1736874001258,0.052215,95801.0,95789.0,0.18749422]
[1736874001550,0.413021,95790.0,95789.0,0.18749422]
[1736874001746,0.052225,95781.0,95780.0,0.3608]
[1736874003149,0.053225,95781.0,95780.0,0.3678]
[1736874003650,0.414025,95781.0,95780.0,0.007]
[1736874004043,0.053225,95781.0,95780.0,0.007]
[1736874004346,0.002,95781.0,95780.0,0.013]
[1736874004547,0.002,95781.0,95780.0,0.065226]
[1736874004846,0.01146259,95797.0,95780.0,0.007]
[1736874005046,0.2277683,95800.0,95780.0,0.007]
[1736874005047,0.1150683,95790.0,95783.0,0.052224]
[1736874005353,0.052222,95788.0,95782.0,0.3608]
[1736874005545,0.052216,95799.0,95787.0,0.052222]
[1736874005743,0.052219,95794.0,95787.0,0.052222]
[1736874005945,0.052219,95793.0,95787.0,0.052222]
[1736874006339,0.052219,95793.0,95789.0,0.052221]
[1736874006639,0.3608,95797.0,95782.0,0.3608]
[1736874006844,0.05222,95792.0,95788.0,0.052222]
[1736874007152,0.05222,95791.0,95788.0,0.052222]
[1736874007346,0.001,95794.0,95782.0,0.3608]
[1736874007547,0.1150683,95792.0,95782.0,0.3608]
[1736874007846,0.052223,95787.0,95782.0,0.3608]
[1736874008040,0.052224,95783.0,95782.0,0.3608]
[1736874008465,0.053218,95794.0,95782.0,0.3618]
[1736874008642,0.3608,95797.0,95793.0,0.052219]
[1736874008838,0.413017,95797.0,95793.0,0.052219]
[1736874009547,0.413017,95797.0,95788.0,0.052222]
[1736874009548,0.052218,95795.0,95788.0,0.052222]
[1736874009754,0.052218,95795.0,95789.0,0.052221]
[1736874009944,0.3608,95797.0,95782.0,0.3608]
[1736874010246,0.052224,95785.0,95779.0,0.06376297]
[1736874010438,0.052223,95787.0,95783.0,0.052224]
[1736874013044,0.1150683,95793.0,95774.0,0.06687699]
[1736874013347,0.1150683,95793.0,95761.0,0.3608]
[1736874013348,0.1150683,95784.0,95766.0,0.1181]
[1736874013541,0.052225,95783.0,95766.0,0.170334]
[1736874013748,0.0545,95783.0,95767.0,0.052233]
[1736874014138,0.052231,95771.0,95767.0,0.052233]
[1736874014346,0.052231,95771.0,95768.0,0.052232]
[1736874014644,0.052231,95772.0,95766.0,0.0589]
[1736874015148,0.052231,95772.0,95767.0,0.059233]
[1736874015343,0.3608,95776.0,95767.0,0.007]
[1736874015548,0.052229,95774.0,95771.0,0.052231]
[1736874015844,0.052232,95769.0,95768.0,0.006]
[1736874016643,0.053232,95769.0,95768.0,0.006]
[1736874016847,0.1150683,95760.0,95748.0,0.1104]
[1736874017039,0.052241,95752.0,95748.0,0.1104]
[1736874017240,0.1150683,95760.0,95747.0,1.86136]
[1736874017241,0.052243,95748.0,95747.0,1.86136]
[1736874017554,0.052243,95748.0,95747.0,0.37244525]
[1736874017743,0.052243,95748.0,95747.0,0.3608]
[1736874017945,0.3608,95757.0,95741.0,0.052247]
[1736874018142,0.3608,95757.0,95731.0,0.052252]
[1736874018143,0.001,95748.0,95731.0,0.052252]
[1736874018348,0.052248,95740.0,95736.0,0.37200343]
[1736874018550,0.052249,95738.0,95736.0,0.01120343]
[1736874018850,0.05225,95737.0,95729.0,0.052254]
[1736874019050,0.1150683,95740.0,95729.0,0.052254]
[1736874019257,0.052252,95734.0,95729.0,0.052254]
[1736874019459,0.1095,95747.0,95727.0,0.37186302]
[1736874019753,0.3618,95748.0,95737.0,0.1150683]
[1736874019956,0.3618,95748.0,95738.0,0.1071]
[1736874020254,0.001,95748.0,95745.0,0.3608]
[1736874020450,0.001,95748.0,95747.0,0.052244]
[1736874020752,0.052238,95758.0,95750.0,0.052242]
[1736874020951,0.3608,95759.0,95746.0,0.0542]
[1736874021145,0.3608,95759.0,95745.0,0.3608]
[1736874021346,0.3608,95759.0,95740.0,0.052248]
[1736874021347,0.001,95748.0,95740.0,0.052248]
[1736874021657,0.002,95748.0,95740.0,0.052248]
[1736874022162,0.052245,95745.0,95741.0,1.5]
[1736874022355,0.052246,95744.0,95741.0,1.5]
[1736874022958,0.41790001,95759.0,95747.0,0.052244]
[1736874022959,0.00220001,95759.0,95747.0,0.052244]
[1736874023253,0.00220001,95759.0,95756.0,0.052239]
[1736874023254,0.001,95759.0,95756.0,0.052239]
[1736874023552,0.001,95759.0,95749.0,0.3608]
[1736874023754,0.3608,95753.0,95741.0,1.50056]
[1736874023956,0.1150683,95751.0,95741.0,1.504]
[1736874024156,0.052247,95742.0,95741.0,0.004]
[1736874025747,0.053247,95742.0,95723.0,0.052257]
[1736874025946,0.052254,95729.0,95724.0,0.052257]
[1736874026147,0.1150683,95733.0,95724.0,0.052257]
[1736874026452,0.1150683,95733.0,95723.0,1.5]
[1736874026453,0.3608,95730.0,95723.0,0.00056]
[1736874026653,0.052258,95722.0,95721.0,0.3608]
[1736874026850,0.052259,95720.0,95719.0,0.18694566]
[1736874027363,0.052257,95724.0,95719.0,0.54774566]
[1736874027662,0.001,95733.0,95732.0,0.052252]
[1736874027847,0.002,95733.0,95732.0,0.052252]
[1736874028165,0.001,95733.0,95732.0,0.052252]
[1736874028358,0.05225,95737.0,95732.0,0.052252]
[1736874028558,0.3608,95739.0,95730.0,0.01111696]
[1736874028860,0.3608,95739.0,95724.0,0.0563]
[1736874029047,0.3608,95730.0,95716.0,0.18694566]
[1736874029253,0.413059,95720.0,95716.0,0.18694566]
[1736874029960,0.05226,95717.0,95716.0,0.18694566]
[1736874030162,0.05226,95717.0,95711.0,0.01105145]
[1736874030163,0.3608,95720.0,95719.0,0.052259]
[1736874030661,0.3608,95720.0,95719.0,0.054259]
[1736874030859,0.052257,95723.0,95719.0,0.415059]
[1736874031060,0.052257,95723.0,95719.0,0.054259]
[1736874031252,0.0571,95728.0,95719.0,0.002]
[1736874031563,0.052259,95720.0,95719.0,0.002]
[1736874032364,0.413059,95720.0,95719.0,0.002]
[1736874032662,0.052264,95710.0,95709.0,0.00156722]
[1736874034264,0.052264,95710.0,95709.0,0.00456722]
[1736874035157,0.053264,95710.0,95709.0,0.00456722]
[1736874035766,0.001,95710.0,95709.0,0.00456722]
[1736874036060,0.001,95710.0,95709.0,1.50456722]
[1736874036263,0.001,95710.0,95709.0,1.55683222]
[1736874036659,0.3623674,95730.0,95710.0,0.052264]
[1736874036862,0.3623674,95730.0,95728.0,0.052254]
[1736874037260,0.0015674,95730.0,95728.0,0.052254]
[1736874037464,0.0015674,95730.0,95729.0,0.052254]
[1736874038865,0.0015674,95730.0,95722.0,0.1088]
[1736874038866,0.0025674,95730.0,95722.0,0.1088]
[1736874039060,0.0548204,95730.0,95722.0,0.1088]
[1736874039259,0.0548204,95730.0,95726.0,0.052255]
[1736874039462,0.052255,95728.0,95722.0,0.161057]
[1736874039670,0.052256,95726.0,95722.0,0.161057]
[1736874039968,0.052256,95726.0,95724.0,0.052257]
[1736874040567,0.0015674,95730.0,95729.0,0.052254]
[1736874040866,0.0015674,95730.0,95729.0,0.054254]
[1736874041174,0.0015674,95730.0,95729.0,0.052254]
[1736874041374,0.0015674,95730.0,95724.0,0.054256]
[1736874041567,0.0015674,95730.0,95724.0,0.002]
[1736874042076,0.052255,95726.0,95724.0,0.052256]
[1736874042261,0.052255,95726.0,95724.0,0.053256]
[1736874042663,0.0025674,95730.0,95724.0,0.001]
[1736874042868,0.052256,95725.0,95724.0,0.001]
[1736874043068,0.052254,95729.0,95724.0,0.001]
[1736874043373,0.052256,95725.0,95724.0,0.001]
[1736874043567,0.052256,95725.0,95724.0,0.002]
[1736874043886,0.413056,95725.0,95724.0,0.002]
[1736874044070,0.413056,95725.0,95709.0,0.00156722]
[1736874044265,0.052263,95713.0,95709.0,0.00156722]
[1736874044576,0.052263,95712.0,95709.0,0.00156722]
[1736874044771,0.052264,95711.0,95709.0,0.00156722]
[1736874045068,0.052264,95710.0,95709.0,0.00156722]
[1736874045865,0.052264,95710.0,95709.0,0.00456722]
[1736874047573,0.053264,95710.0,95709.0,0.00456722]
[1736874054879,0.053264,95710.0,95709.0,0.003]
[1736874056778,0.052267,95704.0,95703.0,0.2500607]
[1736874057076,0.413067,95704.0,95703.0,0.2500607]
[1736874057381,0.052268,95703.0,95702.0,0.18778603]
[1736874058174,0.052268,95703.0,95702.0,0.17342194]
[1736874058467,0.052269,95701.0,95700.0,0.1]
[1736874058675,0.052269,95701.0,95689.0,0.3608]
[1736874058676,0.052275,95690.0,95689.0,0.3608]
[1736874058874,0.3608,95694.0,95682.0,0.052279]
[1736874059083,0.052282,95679.0,95678.0,0.052281]
[1736874059269,0.052282,95678.0,95677.0,0.17342194]
[1736874059468,0.052282,95678.0,95674.0,0.052284]
[1736874059674,0.052282,95678.0,95674.0,0.06336809]
[1736874059979,0.052282,95678.0,95674.0,0.01108409]
[1736874060282,0.052281,95679.0,95672.0,0.052285]
[1736874060469,0.3608,95684.0,95670.0,0.26111149]
[1736874060674,0.1150683,95682.0,95668.0,0.3608]
[1736874060982,0.052287,95669.0,95668.0,0.3608]
[1736874061174,0.05229,95663.0,95662.0,0.00156786]
[1736874061385,0.05229,95663.0,95657.0,0.2500607]
[1736874061572,0.052287,95668.0,95657.0,0.2500607]
[1736874061773,0.3608,95672.0,95671.0,0.052286]
[1736874061981,0.001,95682.0,95681.0,0.05228]
[1736874062479,0.001,95682.0,95679.0,0.3608]
[1736874062480,0.3608,95694.0,95690.0,0.052275]
[1736874062785,0.052274,95693.0,95691.0,1.5]
[1736874062976,0.3608,95694.0,95691.0,1.5]
[1736874063171,0.3608,95704.0,95692.0,0.3608]
[1736874063679,0.052264,95711.0,95703.0,0.052268]
[1736874063978,0.1067,95713.0,95709.0,0.3608]
[1736874064185,0.3608,95718.0,95711.0,0.052263]
[1736874064581,0.41306,95718.0,95711.0,0.052263]
[1736874064778,0.052264,95711.0,95709.0,0.3608]
[1736874065179,0.052264,95710.0,95709.0,0.3608]
[1736874065481,0.009,95713.0,95709.0,0.3608]
[1736874065676,0.05226,95717.0,95712.0,0.052263]
[1736874065877,0.00456798,95714.0,95709.0,0.3608]
[1736874066076,0.00456798,95714.0,95702.0,0.11459384]
[1736874066276,0.052264,95710.0,95703.0,0.052268]
[1736874066488,0.052265,95709.0,95704.0,0.052267]
[1736874066685,0.052265,95708.0,95704.0,0.052267]
[1736874067072,0.00656798,95714.0,95702.0,0.06232484]
[1736874067289,0.00356798,95714.0,95713.0,0.052263]
[1736874067587,0.052249,95738.0,95713.0,0.052263]
[1736874067588,0.052251,95734.0,95726.0,0.052255]
[1736874067779,0.052248,95739.0,95730.0,0.413053]
[1736874068081,0.05225,95737.0,95732.0,0.052252]
[1736874068282,0.1150683,95740.0,95730.0,0.3608]
[1736874068582,0.052253,95731.0,95730.0,0.3608]
[1736874069172,0.052254,95729.0,95723.0,0.052257]
[1736874069374,0.3608,95724.0,95719.0,0.2500607]
[1736874069580,0.052259,95720.0,95719.0,0.2500607]
[1736874070185,0.052265,95709.0,95708.0,0.37365215]
[1736874070387,0.052269,95702.0,95695.0,0.01091477]
[1736874070577,0.3608,95709.0,95693.0,0.25151924]
[1736874070774,0.052272,95697.0,95693.0,0.25151924]
[1736874071689,0.052272,95697.0,95693.0,0.00156748]
[1736874071885,0.3608,95701.0,95693.0,0.00156748]
[1736874071886,0.3608,95701.0,95693.0,0.01276422]
[1736874072084,0.001,95702.0,95696.0,0.052271]
[1736874072590,0.3608,95701.0,95695.0,0.008]
[1736874072889,0.001,95702.0,95695.0,0.008]
[1736874072890,0.001,95697.0,95695.0,0.008]
[1736874073187,0.053272,95697.0,95695.0,0.008]
[1736874073490,0.052272,95697.0,95696.0,0.001]
[1736874073987,0.413072,95697.0,95696.0,0.001]
[1736874074178,0.052272,95696.0,95693.0,0.00256748]
[1736874074377,0.052272,95696.0,95693.0,0.00156748]
[1736874074686,0.3608,95697.0,95693.0,0.00156748]
[1736874074988,0.3608,95697.0,95689.0,0.0538]
[1736874074989,0.24748764,95698.0,95696.0,0.36069576]
[1736874075186,0.24748764,95698.0,95697.0,0.108871]
[1736874075689,0.24748764,95698.0,95697.0,1.608871]
[1736874076088,0.24748764,95700.0,95699.0,0.05227]
[1736874077786,0.23364098,95708.0,95707.0,0.052266]
[1736874077987,0.23364098,95708.0,95707.0,0.413066]
[1736874078293,0.00156757,95728.0,95707.0,0.413066]
[1736874078493,0.01084819,95731.0,95716.0,0.3608]
[1736874078688,0.052255,95727.0,95717.0,0.0588]
[1736874078892,0.3608,95733.0,95731.0,0.052252]
[1736874079195,0.5353,95754.0,95728.0,0.3608]
[1736874079384,0.052241,95753.0,95740.0,0.17320799]
[1736874079586,0.4192,95754.0,95747.0,0.052244]
[1736874079782,0.052241,95752.0,95747.0,0.052244]
[1736874080489,0.052238,95758.0,95751.0,0.052242]
[1736874081085,0.3608,95761.0,95751.0,0.052242]
[1736874081086,0.052239,95757.0,95751.0,0.052242]
[1736874081485,0.33066049,95763.0,95754.0,0.05224]
[1736874081692,0.27842549,95763.0,95754.0,0.3608]
[1736874081888,0.3608,95763.0,95760.0,0.052237]
[1736874082090,0.052239,95756.0,95754.0,0.3608]
[1736874082592,0.052239,95756.0,95754.0,0.3618]
[1736874083785,0.056239,95756.0,95754.0,0.3618]
[1736874084391,0.065239,95756.0,95754.0,0.3618]
[1736874084794,0.1201,95755.0,95754.0,0.3618]
[1736874084990,0.1201,95755.0,95754.0,0.001]
[1736874086000,0.1331,95755.0,95741.0,0.052247]
[1736874086189,0.1331,95755.0,95740.0,0.01118956]
[1736874086387,0.013,95755.0,95754.0,0.05224]
[1736874087999,0.004,95755.0,95754.0,0.05424]
[1736874088500,0.004,95755.0,95754.0,0.05224]
[1736874088700,0.004,95755.0,95754.0,0.06330233]
[1736874088999,0.002,95755.0,95754.0,0.05224]
[1736874089591,0.052233,95768.0,95748.0,0.3608]
[1736874089797,0.052233,95768.0,95761.0,0.052236]
[1736874090002,0.052233,95767.0,95761.0,0.052236]
[1736874090200,0.052234,95765.0,95756.0,0.3608]
[1736874090401,0.052234,95765.0,95757.0,0.052239]
[1736874090702,0.052234,95765.0,95759.0,0.052237]
[1736874091010,0.3608,95763.0,95750.0,0.00056]
[1736874091198,0.3608,95763.0,95748.0,0.001]
[1736874091199,0.052243,95749.0,95748.0,0.001]
[1736874091392,0.052249,95738.0,95722.0,0.3608]
[1736874091596,0.3608,95734.0,95722.0,0.3608]
[1736874091794,0.3608,95734.0,95708.0,0.3608]
[1736874091795,0.052256,95725.0,95708.0,0.3608]
[1736874091989,0.3608,95724.0,95708.0,0.3608]
[1736874092194,0.3608,95724.0,95709.0,0.052264]
[1736874092396,0.052262,95715.0,95708.0,0.3608]
[1736874092700,0.052262,95715.0,95712.0,0.052263]
[1736874093294,0.052252,95732.0,95708.0,0.3608]